fUST/lending_fUST_20250623
["ID","MTS","AMOUNT","RATE_DAILY","PERIOD"]
[367102749,1750659191084,-300.1125815,0.00043,120]
[367102750,1750659191111,-500.0,0.00043035,31]
[367102751,1750659191136,-5000.0,0.00043035,31]
[367102752,1750659191162,-11703.2,0.0004315,120]
[367102753,1750659191188,-200.0,0.00043187,120]
[367102754,1750659191214,-500.0,0.00043199,30]
[367102755,1750659191239,-5000.0,0.00043199,30]
[367102756,1750659191265,-206.0,0.000432,30]
[367102757,1750659191291,-300847.0,0.000432,120]
[367102758,1750659191337,-500.0,0.00043286,120]
[367102759,1750659191384,-500.0,0.00043286,120]
[367102760,1750659191426,-5000.0,0.00043286,120]
[367102761,1750659191468,-500.0,0.00043287,30]
[367102762,1750659191514,-500.0,0.00043384,67]
[367102763,1750659191558,-500.0,0.00043384,67]
[367102764,1750659191608,-5000.0,0.00043384,67]
[367102765,1750659191664,-500.0,0.0004345,85]
[367102766,1750659191713,-500.0,0.0004345,85]
[367102767,1750659191759,-5000.0,0.0004345,85]
[367102768,1750659191803,-11703.2,0.00043561,120]
[367102769,1750659191849,-321.89,0.00043751,68]
[367102770,1750659191895,-1000.0,0.000438,90]
[367102771,1750659191942,-1000.0,0.000438,90]
[367102772,1750659191985,-1000.0,0.000438,90]
[367102773,1750659192029,-200.0,0.00043819,120]
[367102774,1750659192072,-191.78,0.00043834,120]
[367102775,1750659192115,-261.71814749,0.00043836,120]
[367102776,1750659197066,213.63163053,0.00026,30]
[367102777,1750659197897,213.63163053,0.00027,120]
[367102778,1750659199520,1333.0,0.00029041,120]
[367102779,1750659199704,281.31031952,0.00033973,120]
[367102780,1750659199757,236.12971737,0.00035616,30]
[367102781,1750659200544,213.63163053,0.0004,120]
[367102782,1750659211626,-151.0,0.00020203,2]
[367102785,1750659277884,-2000.0,0.00026425,30]
[367102786,1750659277929,-2000.0,0.00026425,30]
[367102787,1750659277973,-2000.0,0.00026425,30]
[367102788,1750659278017,-2000.0,0.00026425,30]
[367102789,1750659278059,-2000.0,0.00026425,30]
[367102790,1750659278102,-5000.0,0.00026425,120]
[367102791,1750659278145,-150.0,0.00026425,120]
[367102792,1750659278188,-2000.0,0.00026425,30]
[367102793,1750659278231,-2000.0,0.00026425,30]
[367102794,1750659278272,-2000.0,0.00026425,30]
[367102795,1750659278317,-158.62167316,0.00026425,30]
[367102796,1750659278362,-2854.15625601,0.00026425,30]
[367102797,1750659278409,-12727.48169433,0.00026425,60]
[367102798,1750659278455,-13587.40635551,0.00026425,60]
[367102799,1750659278498,-949522.33402099,0.00026425,60]
[367102800,1750659285276,-1000000.0,0.00026425,60]
[367102801,1750659289192,-366254.52621399,0.00026425,60]
[367102802,1750659289236,-2000.0,0.00026425,30]
[367102803,1750659289279,-2000.0,0.00026425,30]
[367102804,1750659289327,-3706.0,0.00026425,120]
[367102805,1750659289371,-1171.61262322,0.00026425,35]
[367102806,1750659289416,-624867.86116279,0.00026425,60]
[367102807,1750659294549,-1366635.95883721,0.00026425,60]
[367102808,1750659294596,-163.4741394,0.00026425,30]
[367102809,1750659294643,-747.07052356,0.00026425,32]
[367102810,1750659294686,-150.05832723,0.00026425,120]
[367102811,1750659294730,-156.50205717,0.00026425,120]
[367102812,1750659294773,-164.01603827,0.00026425,120]
[367102813,1750659294816,-300.0,0.00026425,30]
[367102814,1750659294859,-430.64726961,0.00026425,30]
[367102815,1750659304101,-160.0,0.00020203,2]
[367102822,1750659447698,-236.03405117,0.00020167,2]
[367102827,1750659530813,-197.13608938,0.00020131,2]
[367102844,1750659858484,5348.8883288,0.00019924,2]
[367102846,1750659941095,-180.26424402,0.00020131,2]
[367102847,1750659941117,-243.75840001,0.00020167,2]
[367102848,1750659941945,-167.31909194,0.00020167,2]
[367102849,1750660002096,162.530966,0.00013699,2]
[367102851,1750660054131,-18.88845688,0.00020167,2]
[367102852,1750660054160,-151.0,0.00020203,2]
[367102853,1750660054186,-168.0,0.00020279,2]
[367102854,1750660054213,-168.0,0.00020294,2]
[367102855,1750660054237,-205.736517,0.00020422,2]
[367102856,1750660054261,-244.926016,0.00020496,2]
[367102857,1750660054288,-462.0,0.00020695,2]
[367102858,1750660054316,-1000.0,0.00020733,2]
[367102859,1750660054340,-301.36197728,0.00020838,2]
[367102860,1750660054365,-875.0,0.00020923,2]
[367102861,1750660054389,-161.0,0.00020923,2]
[367102862,1750660054412,-300.0,0.00020923,2]
[367102863,1750660054436,-171.66833601,0.00020924,2]
[367102865,1750660113856,969.13,0.000195,2]
[367102868,1750660189390,2192.0738,0.00020418,2]
[367102881,1750660232696,-300.0,0.00020417,2]
[367102883,1750660232706,-22707.9262,0.00020418,2]
[367102885,1750660232716,-162.530966,0.00020951,2]
[367102886,1750660232726,-151.0,0.00021,2]
[367102887,1750660232736,-365.8891638,0.00021041,2]
[367102888,1750660232746,-727.6694254,0.00021141,2]
[367102890,1750660232756,-462.0,0.00021269,2]
[367102891,1750660232766,-344.06927464,0.00021293,2]
[367102893,1750660232775,-322.92711,0.00021293,2]
[367102894,1750660232786,-462.0,0.00021489,2]
[367102895,1750660232796,-265.02182595,0.00021575,2]
[367102896,1750660232806,-462.0,0.00021595,2]
[367102897,1750660232816,-365.8891638,0.000216,2]
[367102898,1750660232826,-462.0,0.00021672,2]
[367102899,1750660232835,-526.31909194,0.00021673,2]
[367102900,1750660232845,-159.9331748,0.00021673,2]
[367102901,1750660232855,-500.0,0.00021673,2]
[367102902,1750660232864,-500.0,0.00021673,2]
[367102903,1750660232874,-500.0,0.00021673,2]
[367102904,1750660232884,-500.0,0.00021673,2]
[367102905,1750660232893,-500.0,0.00021673,2]
[367102906,1750660232902,-500.0,0.00021673,2]
[367102907,1750660232912,-500.0,0.00021673,2]
[367102908,1750660232921,-500.0,0.00021673,2]
[367102909,1750660232931,-500.0,0.00021673,2]
[367102910,1750660232940,-500.0,0.00021673,2]
[367102911,1750660232950,-500.0,0.00021673,2]
[367102912,1750660232960,-500.0,0.00021674,2]
[367102913,1750660232969,-462.0,0.00021682,2]
[367102914,1750660232979,-1000.0,0.00021697,2]
[367102915,1750660232993,-321.89,0.00021762,2]
[367102916,1750660233002,-1000.0,0.00021899,2]
[367102917,1750660233012,-2419.59299274,0.000219,2]
[367102918,1750660233021,-151.0,0.00021904,2]
[367102919,1750660233031,-204.96,0.00021907,3]
[367102920,1750660233041,-614.88,0.00021907,3]
[367102921,1750660233050,-657.17,0.00021907,10]
[367102922,1750660233061,-500.0,0.00021916,2]
[367102923,1750660233071,-500.0,0.00021916,2]
[367102924,1750660233081,-500.0,0.00021916,2]
[367102925,1750660233091,-289.95473129,0.00021916,2]
[367102926,1750660233101,-500.0,0.00021916,7]
[367102927,1750660233111,-1000.0,0.00021916,2]
[367102928,1750660233121,-1000.0,0.00021916,2]
[367102929,1750660233131,-1000.0,0.00021916,2]
[367102930,1750660233141,-1000.0,0.00021916,2]
[367102931,1750660233150,-602.8813513,0.00021916,2]
[367102932,1750660233160,-200.37,0.00021916,2]
[367102933,1750660233170,-327.66373908,0.00021917,2]
[367102934,1750660233179,-357.76452755,0.00021917,2]
[367102935,1750660233189,-460.0,0.00021917,2]
[367102936,1750660233199,-460.0,0.00021917,2]
[367102937,1750660233209,-460.0,0.00021917,2]
[367102938,1750660233219,-460.0,0.00021917,2]
[367102939,1750660233229,-460.0,0.00021917,2]
[367102940,1750660233239,-460.0,0.00021917,2]
[367102941,1750660233249,-460.0,0.00021917,2]
[367102942,1750660233258,-482.37,0.00021917,2]
[367102944,1750660233268,-460.0,0.00021917,2]
[367102945,1750660233278,-460.0,0.00021917,2]
[367102946,1750660233287,-460.0,0.00021917,2]
[367102947,1750660233297,-710.14,0.00021917,2]
[367102948,1750660233307,-431.40548553,0.00021917,2]
[367102949,1750660233317,-556.26204884,0.00021917,2]
[367102950,1750660233326,-460.0,0.00021917,2]
[367102951,1750660233336,-460.0,0.00021917,2]
[367102952,1750660233346,-1003.02,0.00021917,2]
[367102953,1750660233355,-435.61114273,0.00021917,2]
[367102954,1750660233366,-460.0,0.00021917,2]
[367102955,1750660233384,-460.0,0.00021917,2]
[367102956,1750660233402,-460.0,0.00021917,2]
[367102957,1750660233422,-460.0,0.00021917,2]
[367102958,1750660233438,-460.0,0.00021917,2]
[367102959,1750660233451,-460.0,0.00021917,2]
[367102960,1750660233463,-460.0,0.00021917,2]
[367102961,1750660233478,-460.0,0.00021917,2]
[367102962,1750660233491,-460.0,0.00021917,2]
[367102963,1750660233506,-460.0,0.00021917,2]
[367102964,1750660233520,-460.0,0.00021917,2]
[367102965,1750660233533,-460.0,0.00021917,2]
[367102966,1750660233547,-460.0,0.00021917,2]
[367102967,1750660233562,-460.0,0.00021917,2]
[367102968,1750660233578,-460.0,0.00021917,2]
[367102969,1750660233593,-460.0,0.00021917,2]
[367102970,1750660233605,-440.06076546,0.00021917,2]
[367102971,1750660233622,-460.0,0.00021917,2]
[367102972,1750660233635,-460.0,0.00021917,2]
[367102973,1750660233650,-460.0,0.00021917,2]
[367102974,1750660233664,-460.0,0.00021917,2]
[367102975,1750660233678,-460.0,0.00021917,2]
[367102976,1750660233692,-561.68,0.00021917,2]
[367102977,1750660233703,-460.0,0.00021917,2]
[367102978,1750660233715,-460.0,0.00021917,2]
[367102979,1750660233728,-460.0,0.00021917,2]
[367102980,1750660233741,-460.0,0.00021917,2]
[367102981,1750660233755,-358.6990112,0.00021917,2]
[367102982,1750660233769,-345.33714873,0.00021917,2]
[367102983,1750660233783,-460.0,0.00021917,2]
[367102984,1750660233796,-460.0,0.00021917,2]
[367102985,1750660233813,-460.0,0.00021917,2]
[367102986,1750660233827,-460.0,0.00021917,2]
[367102987,1750660233841,-460.0,0.00021917,2]
[367102988,1750660233853,-460.0,0.00021917,2]
[367102989,1750660233864,-460.0,0.00021917,2]
[367102990,1750660233875,-460.0,0.00021917,2]
[367102991,1750660233886,-460.0,0.00021917,2]
[367102992,1750660233901,-460.0,0.00021917,2]
[367102993,1750660233922,-460.0,0.00021917,2]
[367102994,1750660233943,-460.0,0.00021917,2]
[367102995,1750660233966,-460.0,0.00021917,2]
[367102996,1750660233979,-460.0,0.00021917,2]
[367102997,1750660233991,-460.0,0.00021917,2]
[367102998,1750660234004,-460.0,0.00021917,2]
[367102999,1750660234019,-460.0,0.00021917,2]
[367103000,1750660234030,-561.83,0.00021917,2]
[367103001,1750660234041,-460.0,0.00021917,2]
[367103002,1750660234053,-472.29,0.00021917,2]
[367103003,1750660234064,-460.0,0.00021917,2]
[367103004,1750660234076,-460.0,0.00021917,2]
[367103005,1750660234088,-460.0,0.00021917,2]
[367103006,1750660234100,-559.79089011,0.00021917,2]
[367103007,1750660234114,-460.0,0.00021917,2]
[367103008,1750660234137,-460.0,0.00021917,2]
[367103009,1750660234152,-460.0,0.00021917,2]
[367103010,1750660234165,-586.41,0.00021917,2]
[367103011,1750660234178,-460.0,0.00021917,2]
[367103012,1750660234190,-921.96,0.00021917,2]
[367103013,1750660234202,-1028.26,0.00021917,2]
[367103014,1750660234215,-460.0,0.00021917,2]
[367103015,1750660234229,-431.63013999,0.00021917,2]
[367103016,1750660234241,-460.0,0.00021917,2]
[367103017,1750660234252,-460.0,0.00021917,2]
[367103018,1750660234264,-460.0,0.00021917,2]
[367103019,1750660234275,-460.0,0.00021917,2]
[367103020,1750660234287,-29.56042223,0.00021917,2]
[367103021,1750660234308,-1051.50957777,0.00021917,2]
[367103022,1750660234321,-460.0,0.00021917,2]
[367103023,1750660234332,-460.0,0.00021917,2]
[367103024,1750660234345,-460.0,0.00021917,2]
[367103025,1750660234356,-460.0,0.00021917,2]
[367103026,1750660234369,-460.0,0.00021917,2]
[367103027,1750660234381,-460.0,0.00021917,2]
[367103028,1750660234392,-460.0,0.00021917,2]
[367103029,1750660234404,-460.0,0.00021917,2]
[367103030,1750660234420,-301.17698908,0.00021917,2]
[367103031,1750660234432,-460.0,0.00021917,2]
[367103032,1750660234444,-460.0,0.00021917,2]
[367103033,1750660234456,-460.0,0.00021917,2]
[367103034,1750660234468,-460.0,0.00021917,2]
[367103035,1750660234480,-304.43810238,0.00021917,2]
[367103036,1750660234492,-460.0,0.00021917,2]
[367103037,1750660234504,-226.58087281,0.00021917,2]
[367103038,1750660234517,-460.0,0.00021917,2]
[367103039,1750660234528,-460.0,0.00021917,2]
[367103040,1750660234540,-460.0,0.00021917,2]
[367103041,1750660234552,-460.0,0.00021917,2]
[367103042,1750660234564,-460.0,0.00021917,2]
[367103043,1750660234575,-460.0,0.00021917,2]
[367103044,1750660234589,-460.0,0.00021917,2]
[367103045,1750660234600,-460.0,0.00021917,2]
[367103046,1750660234612,-460.0,0.00021917,2]
[367103047,1750660234624,-460.0,0.00021917,2]
[367103048,1750660234635,-460.0,0.00021917,2]
[367103049,1750660234647,-460.0,0.00021917,2]
[367103050,1750660234658,-2008.07,0.00021917,2]
[367103051,1750660234669,-460.0,0.00021917,2]
[367103052,1750660234681,-460.0,0.00021917,2]
[367103053,1750660234693,-460.0,0.00021917,2]
[367103054,1750660234705,-460.0,0.00021917,2]
[367103055,1750660234716,-460.0,0.00021917,2]
[367103056,1750660234728,-261.0509548,0.00021917,2]
[367103059,1750660238586,-369.58051387,0.00021673,2]
[367103060,1750660238596,-500.0,0.00021673,2]
[367103061,1750660238605,-500.0,0.00021673,2]
[367103062,1750660238615,-500.0,0.00021673,2]
[367103063,1750660238623,-500.0,0.00021673,2]
[367103064,1750660238633,-500.0,0.00021673,2]
[367103065,1750660238642,-233.44282985,0.00021673,2]
[367103066,1750660238677,-266.55717015,0.00021673,2]
[367103067,1750660238687,-500.0,0.00021673,2]
[367103068,1750660238696,-500.0,0.00021673,2]
[367103069,1750660238706,-500.0,0.00021673,2]
[367103070,1750660238715,-500.0,0.00021673,2]
[367103071,1750660238725,-500.0,0.00021673,2]
[367103072,1750660238734,-500.0,0.00021673,2]
[367103073,1750660238744,-500.0,0.00021673,2]
[367103074,1750660238753,-500.0,0.00021673,2]
[367103075,1750660238763,-500.0,0.00021673,2]
[367103077,1750660238772,-500.0,0.00021673,2]
[367103078,1750660238781,-500.0,0.00021673,2]
[367103079,1750660238790,-500.0,0.00021673,2]
[367103080,1750660238799,-500.0,0.00021673,2]
[367103081,1750660238809,-198.9490452,0.00021917,2]
[367103082,1750660238818,-460.0,0.00021917,2]
[367103083,1750660238828,-1308.77,0.00021917,2]
[367103084,1750660238839,-460.0,0.00021917,2]
[367103085,1750660238848,-410.0,0.00021917,2]
[367103086,1750660238857,-460.0,0.00021917,2]
[367103087,1750660238866,-460.0,0.00021917,2]
[367103088,1750660238875,-460.0,0.00021917,2]
[367103089,1750660238885,-460.0,0.00021917,2]
[367103090,1750660238894,-460.0,0.00021917,2]
[367103091,1750660238904,-460.0,0.00021917,2]
[367103092,1750660238915,-460.0,0.00021917,2]
[367103093,1750660238924,-460.0,0.00021917,2]
[367103094,1750660238934,-460.0,0.00021917,2]
[367103095,1750660238943,-460.0,0.00021917,2]
[367103096,1750660238952,-460.0,0.00021917,2]
[367103097,1750660238962,-460.0,0.00021917,2]
[367103098,1750660238971,-460.0,0.00021917,2]
[367103099,1750660238980,-460.0,0.00021917,2]
[367103100,1750660238990,-460.0,0.00021917,2]
[367103101,1750660238999,-460.0,0.00021917,2]
[367103102,1750660239008,-460.0,0.00021917,2]
[367103103,1750660239017,-460.0,0.00021917,2]
[367103104,1750660239027,-580.03,0.00021917,2]
[367103105,1750660239036,-460.0,0.00021917,2]
[367103106,1750660239046,-460.0,0.00021917,2]
[367103107,1750660239055,-460.0,0.00021917,2]
[367103108,1750660239064,-460.0,0.00021917,2]
[367103109,1750660239073,-460.0,0.00021917,2]
[367103110,1750660239083,-460.0,0.00021917,2]
[367103111,1750660239091,-460.0,0.00021917,2]
[367103112,1750660239101,-460.0,0.00021917,2]
[367103113,1750660239110,-479.13964789,0.00021917,2]
[367103114,1750660239119,-460.0,0.00021917,2]
[367103115,1750660239129,-576.44,0.00021917,2]
[367103116,1750660239139,-460.0,0.00021917,2]
[367103117,1750660239150,-460.0,0.00021917,2]
[367103118,1750660239159,-553.57,0.00021917,2]
[367103119,1750660239168,-460.0,0.00021917,2]
[367103120,1750660239178,-460.0,0.00021917,2]
[367103121,1750660239187,-2174.79,0.00021917,2]
[367103122,1750660239196,-460.0,0.00021917,2]
[367103123,1750660239206,-849.16,0.00021917,2]
[367103124,1750660239216,-460.0,0.00021917,2]
[367103125,1750660239225,-460.0,0.00021917,2]
[367103126,1750660239235,-460.0,0.00021917,2]
[367103127,1750660239245,-831.48,0.00021917,2]
[367103128,1750660239255,-1180.27,0.00021917,2]
[367103129,1750660239264,-460.0,0.00021917,2]
[367103130,1750660239275,-702.29,0.00021917,2]
[367103131,1750660239285,-460.0,0.00021917,2]
[367103132,1750660239295,-460.0,0.00021917,2]
[367103133,1750660239305,-460.0,0.00021917,2]
[367103134,1750660239315,-460.0,0.00021917,2]
[367103135,1750660239323,-414.16166827,0.00021917,2]
[367103136,1750660239332,-460.0,0.00021917,2]
[367103137,1750660239342,-599.24,0.00021917,2]
[367103138,1750660239351,-460.0,0.00021917,2]
[367103139,1750660239360,-460.0,0.00021917,2]
[367103140,1750660239370,-1231.67,0.00021917,2]
[367103141,1750660239379,-460.0,0.00021917,2]
[367103142,1750660239390,-495.86,0.00021917,2]
[367103143,1750660239400,-460.0,0.00021917,2]
[367103144,1750660239410,-460.0,0.00021917,2]
[367103145,1750660239424,-460.0,0.00021917,2]
[367103146,1750660239434,-460.0,0.00021917,2]
[367103147,1750660239444,-460.0,0.00021917,2]
[367103148,1750660239455,-460.0,0.00021917,2]
[367103149,1750660239465,-1578.57,0.00021917,2]
[367103150,1750660239475,-460.0,0.00021917,2]
[367103151,1750660239485,-597.1990141,0.00021917,2]
[367103152,1750660239499,-361.00997491,0.00021917,2]
[367103153,1750660239508,-460.0,0.00021917,2]
[367103154,1750660239518,-460.0,0.00021917,2]
[367103155,1750660239528,-460.0,0.00021917,2]
[367103156,1750660239538,-547.23,0.00021917,2]
[367103157,1750660239549,-460.0,0.00021917,2]
[367103158,1750660239559,-460.0,0.00021917,2]
[367103159,1750660239569,-460.0,0.00021917,2]
[367103160,1750660239579,-460.0,0.00021917,2]
[367103161,1750660239588,-460.0,0.00021917,2]
[367103162,1750660239598,-460.0,0.00021917,2]
[367103163,1750660239608,-460.0,0.00021917,2]
[367103164,1750660239618,-460.69810951,0.00021917,2]
[367103165,1750660239627,-775.45,0.00021917,2]
[367103166,1750660239637,-975.94,0.00021917,2]
[367103167,1750660239647,-460.0,0.00021917,2]
[367103168,1750660239657,-460.0,0.00021917,2]
[367103169,1750660239667,-878.23,0.00021917,2]
[367103170,1750660239676,-460.0,0.00021917,2]
[367103171,1750660239687,-460.0,0.00021917,2]
[367103172,1750660239696,-1226.1,0.00021917,2]
[367103173,1750660239706,-460.0,0.00021917,2]
[367103174,1750660239715,-460.0,0.00021917,2]
[367103175,1750660239725,-460.0,0.00021917,2]
[367103176,1750660239735,-460.0,0.00021917,2]
[367103177,1750660239744,-460.0,0.00021917,2]
[367103178,1750660239754,-460.0,0.00021917,2]
[367103179,1750660239764,-468.83,0.00021917,2]
[367103180,1750660239773,-500.0,0.00021917,2]
[367103181,1750660239783,-460.0,0.00021917,2]
[367103182,1750660239792,-287.77885334,0.00021917,2]
[367103183,1750660239802,-461.98026201,0.00021917,2]
[367103184,1750660239812,-500.0,0.00021917,2]
[367103185,1750660239821,-460.0,0.00021917,2]
[367103186,1750660239831,-460.0,0.00021917,2]
[367103187,1750660239841,-460.0,0.00021917,2]
[367103188,1750660239852,-460.0,0.00021917,2]
[367103189,1750660239862,-460.0,0.00021917,2]
[367103190,1750660239871,-464.67964733,0.00021917,2]
[367103191,1750660239880,-460.0,0.00021917,2]
[367103192,1750660239889,-540.85,0.00021917,2]
[367103193,1750660239899,-460.0,0.00021917,2]
[367103194,1750660239908,-460.0,0.00021917,2]
[367103195,1750660239918,-460.0,0.00021917,2]
[367103196,1750660239927,-458.40269902,0.00021917,2]
[367103197,1750660239937,-460.0,0.00021917,2]
[367103198,1750660239947,-500.0,0.00021917,2]
[367103199,1750660239956,-460.0,0.00021917,2]
[367103200,1750660239966,-460.0,0.00021917,2]
[367103201,1750660239975,-460.0,0.00021917,2]
[367103202,1750660239984,-460.0,0.00021917,2]
[367103203,1750660239994,-672.46,0.00021917,2]
[367103204,1750660240003,-460.0,0.00021917,2]
[367103205,1750660240013,-841.29,0.00021917,2]
[367103206,1750660240022,-460.0,0.00021917,2]
[367103207,1750660240032,-3122.15,0.00021917,2]
[367103208,1750660240041,-460.0,0.00021917,2]
[367103209,1750660240051,-1618.24,0.00021917,2]
[367103210,1750660240060,-512.51,0.00021917,2]
[367103211,1750660240070,-460.0,0.00021917,2]
[367103212,1750660240079,-460.0,0.00021917,2]
[367103213,1750660240089,-460.0,0.00021917,2]
[367103214,1750660240098,-1933.08,0.00021917,2]
[367103215,1750660240108,-460.0,0.00021917,2]
[367103216,1750660240117,-460.0,0.00021917,2]
[367103217,1750660240126,-460.0,0.00021917,2]
[367103218,1750660240135,-460.0,0.00021917,2]
[367103219,1750660240144,-460.0,0.00021917,2]
[367103220,1750660240153,-460.0,0.00021917,2]
[367103221,1750660240163,-784.63,0.00021917,2]
[367103222,1750660240172,-460.0,0.00021917,2]
[367103223,1750660240181,-1028.08,0.00021917,2]
[367103224,1750660240190,-860.51,0.00021917,2]
[367103225,1750660240199,-999.15,0.00021917,2]
[367103226,1750660240209,-499.55,0.00021917,2]
[367103227,1750660240218,-460.0,0.00021917,2]
[367103230,1750660240228,-460.0,0.00021917,2]
[367103231,1750660240237,-460.0,0.00021917,2]
[367103232,1750660240247,-460.0,0.00021917,2]
[367103233,1750660240256,-460.0,0.00021917,2]
[367103234,1750660240265,-828.44,0.00021917,2]
[367103235,1750660240275,-1123.89,0.00021917,2]
[367103236,1750660240284,-460.0,0.00021917,2]
[367103237,1750660240293,-1994.7,0.00021917,2]
[367103238,1750660240302,-460.0,0.00021917,2]
[367103239,1750660240311,-460.0,0.00021917,2]
[367103240,1750660240320,-698.84,0.00021917,2]
[367103241,1750660240329,-460.0,0.00021917,2]
[367103242,1750660240338,-460.0,0.00021917,2]
[367103243,1750660240348,-460.0,0.00021917,2]
[367103244,1750660240357,-460.0,0.00021917,2]
[367103245,1750660240367,-460.0,0.00021917,2]
[367103246,1750660240377,-460.0,0.00021917,2]
[367103247,1750660240387,-460.0,0.00021917,2]
[367103248,1750660240396,-460.0,0.00021917,2]
[367103249,1750660240407,-907.34,0.00021917,2]
[367103250,1750660240421,-460.0,0.00021917,2]
[367103251,1750660240430,-460.0,0.00021917,2]
[367103252,1750660240440,-460.0,0.00021917,2]
[367103253,1750660240449,-2912.74,0.00021917,2]
[367103254,1750660240459,-2912.74,0.00021917,2]
[367103255,1750660240468,-2912.74,0.00021917,2]
[367103256,1750660240477,-529.80427426,0.00021917,2]
[367103257,1750660240486,-2912.74,0.00021917,2]
[367103258,1750660240496,-2912.74,0.00021917,2]
[367103259,1750660240505,-2912.74,0.00021917,2]
[367103260,1750660240514,-460.0,0.00021917,2]
[367103261,1750660240523,-2912.74,0.00021917,2]
[367103262,1750660240533,-460.0,0.00021917,2]
[367103263,1750660240542,-2912.74,0.00021917,2]
[367103264,1750660240551,-2912.74,0.00021917,2]
[367103265,1750660240561,-2912.74,0.00021917,2]
[367103266,1750660240570,-460.0,0.00021917,2]
[367103267,1750660240580,-2912.74,0.00021917,2]
[367103268,1750660240590,-2912.74,0.00021917,2]
[367103269,1750660240599,-2912.74,0.00021917,2]
[367103270,1750660240609,-2912.74,0.00021917,2]
[367103271,1750660240619,-2912.74,0.00021917,2]
[367103272,1750660240628,-2912.74,0.00021917,2]
[367103273,1750660240638,-2912.74,0.00021917,2]
[367103274,1750660240647,-2912.74,0.00021917,2]
[367103275,1750660240657,-2912.74,0.00021917,2]
[367103276,1750660240666,-460.0,0.00021917,2]
[367103277,1750660240676,-2912.74,0.00021917,2]
[367103278,1750660240685,-460.0,0.00021917,2]
[367103279,1750660240695,-2912.74,0.00021917,2]
[367103280,1750660240705,-2912.74,0.00021917,2]
[367103281,1750660240715,-2912.74,0.00021917,2]
[367103282,1750660240725,-504.42177839,0.00021917,2]
[367103283,1750660240734,-2912.80604223,0.00021917,2]
[367103284,1750660240744,-460.0,0.00021917,2]
[367103285,1750660240754,-460.0,0.00021917,2]
[367103286,1750660240764,-460.0,0.00021917,2]
[367103287,1750660240773,-460.0,0.00021917,2]
[367103288,1750660240784,-460.0,0.00021917,2]
[367103289,1750660240793,-460.0,0.00021917,2]
[367103290,1750660240803,-1002.18,0.00021917,2]
[367103291,1750660240813,-442.65130489,0.00021917,2]
[367103292,1750660240823,-460.0,0.00021917,2]
[367103293,1750660240833,-460.0,0.00021917,2]
[367103294,1750660240842,-460.0,0.00021917,2]
[367103295,1750660240852,-460.0,0.00021917,2]
[367103296,1750660240862,-460.0,0.00021917,2]
[367103297,1750660240872,-460.0,0.00021917,2]
[367103298,1750660240881,-1179.12,0.00021917,2]
[367103299,1750660240891,-548.2,0.00021917,2]
[367103300,1750660240901,-514.1,0.00021917,2]
[367103301,1750660240911,-428.30180076,0.00021917,2]
[367103302,1750660240921,-367.51572046,0.00021917,2]
[367103303,1750660240930,-460.0,0.00021917,2]